bitfinex/quotes_ETHUSD_20240927
["timestamp","ask_amount","ask_price","bid_price","bid_amount"]
[1727446245733,0.129236,2671.4,2671.2,3.74356]
[1727446246224,0.129236,2671.4,2671.2,3.74355]
[1727446247224,0.129236,2671.4,2671.2,7.48711]
[1727446247392,0.129236,2671.4,2671.3,3.74349]
[1727446247729,0.129236,2671.4,2671.3,5.294594]
[1727446248690,0.129236,2671.4,2671.3,8.294594]
[1727446248941,3.74134,2672.9,2672.4,0.7772]
[1727446249135,3.74156,2672.7,2672.4,0.7772]
[1727446250130,3.74156,2672.7,2672.2,4.55312]
[1727446250342,3.74044,2673.5,2672.2,4.55312]
[1727446250343,4.56706,2673.0,2672.2,1.559352]
[1727446250517,8.30826,2673.0,2672.5,3.7418]
[1727446250847,8.30826,2673.0,2672.2,0.8109]
[1727446250848,3.74134,2672.9,2672.3,3.74202]
[1727446251005,3.74147,2672.8,2672.3,3.74202]
[1727446251202,0.8259,2673.0,2672.4,3.74194]
[1727446251431,1.6586444,2673.0,2672.6,3.74156]
[1727446251742,0.8259,2673.0,2672.8,3.74138]
[1727446251946,0.8259,2673.0,2672.9,3.74125]
[1727446252158,4.53336,2673.3,2672.8,3.74138]
[1727446252320,0.7926,2673.6,2673.0,3.7411]
[1727446252511,3.74048,2673.5,2673.0,3.7411]
[1727446252841,4.193858,2673.4,2672.8,8.31329]
[1727446253042,4.193858,2673.4,2672.8,0.8307]
[1727446253340,3.88971003,2674.1,2672.8,0.8307]
[1727446253341,0.921836,2674.1,2673.2,3.7407]
[1727446253548,3.73983,2674.0,2673.3,3.74066]
[1727446253718,0.921836,2674.1,2673.5,4.56388]
[1727446253924,4.2058456,2674.0,2673.5,0.8235]
[1727446254311,0.129236,2674.1,2673.5,4.56384]
[1727446254511,0.129236,2674.1,2673.5,4.56383]
[1727446254738,0.129236,2674.1,2673.5,0.8235]
[1727446255307,0.129236,2674.1,2673.7,3.74011]
[1727446255547,0.129236,2674.1,2673.9,3.73984]
[1727446255748,0.129236,2674.1,2674.0,4.51141]
[1727446256711,0.129236,2674.1,2674.0,0.7717]
[1727446256949,0.129236,2674.1,2673.7,3.0]
[1727446257144,0.129236,2674.1,2673.8,3.0]
[1727446257348,0.129236,2674.1,2673.6,3.7845]
[1727446257651,0.129236,2674.1,2673.7,3.7401]
[1727446257856,0.129236,2674.1,2674.0,4.51471]
[1727446258016,0.129236,2674.1,2674.0,8.13948066]
[1727446258210,0.129236,2674.1,2674.0,8.06471]
[1727446258836,12.22,2676.4,2674.9,3.73834]
[1727446258837,3.73713,2675.9,2674.9,3.73834]
[1727446259022,3.73671,2676.2,2675.2,3.73799]
[1727446259353,0.7526,2676.4,2675.3,0.55]
[1727446259569,3.73664,2676.2,2675.0,4.50478]
[1727446259849,0.7526,2676.4,2675.0,0.7665]
[1727446259850,0.373664,2676.1,2675.0,0.7665]
[1727446260060,3.73688,2676.1,2675.1,3.73817]
[1727446260223,3.73688,2676.1,2674.3,3.73926]
[1727446260224,3.73665,2676.2,2675.3,0.7804]
[1727446260429,1.129265,2676.1,2675.3,0.7804]
[1727446260636,0.7556,2676.1,2675.3,0.7804]
[1727446260949,3.73751,2675.6,2675.2,1.24]
[1727446261155,3.73739,2675.7,2675.2,1.24]
[1727446261478,0.74746,2675.6,2675.2,1.24]
[1727446261761,3.73722,2675.8,2675.2,1.24]
[1727446262267,6.73764,2675.5,2674.7,0.801]
[1727446262425,3.73753,2675.6,2674.7,0.801]
[1727446262758,0.7556,2676.1,2674.9,3.73833]
[1727446262759,3.73695,2676.0,2674.9,3.73833]
[1727446263056,0.7556,2676.1,2675.0,1.142533]
[1727446263225,0.7556,2676.1,2674.1,3.73947]
[1727446263226,3.73651,2676.3,2675.1,3.73813]
[1727446263428,3.73675,2676.2,2675.3,0.8177]
[1727446263752,0.373675,2676.1,2675.4,3.73774]
[1727446263961,0.7956,2676.5,2675.4,3.73773]
[1727446263962,3.73624,2676.5,2675.4,3.73773]
[1727446264168,0.3865476,2676.5,2675.3,0.8177]
[1727446264449,3.73608,2676.6,2675.3,4.55558]
[1727446264657,3.73608,2676.6,2674.9,3.0]
[1727446264658,3.73627,2676.5,2675.5,4.51869]
[1727446264828,3.73647,2676.4,2675.5,0.7811]
[1727446265032,0.129236,2676.7,2675.9,3.73705]
[1727446265273,0.129236,2676.7,2676.0,0.8136]
[1727446265451,0.129236,2676.7,2676.3,0.55]
[1727446265652,0.129236,2676.7,2676.6,3.73608]
[1727446265908,0.129236,2676.7,2676.5,0.8136]
[1727446266057,3.73408,2678.1,2675.5,3.78751]
[1727446266058,3.73364,2678.4,2676.9,3.73561]
[1727446266258,3.73358,2678.4,2677.1,0.55]
[1727446266457,0.139936,2679.4,2677.1,0.55]
[1727446266458,3.73341,2678.6,2677.5,6.73475]
[1727446266685,3.73303,2678.8,2677.7,0.55]
[1727446266883,3.73275,2679.0,2677.7,0.55]
[1727446267069,0.139936,2679.4,2678.0,0.55]
[1727446267273,3.73261,2679.1,2678.1,0.07465071]
[1727446267616,0.139936,2679.4,2677.9,0.7981]
[1727446267769,3.73277,2679.0,2677.9,0.7981]
[1727446267961,3.73246,2679.2,2677.9,4.53234]
[1727446268155,3.73239,2679.3,2678.0,4.28412]
[1727446268356,0.139936,2679.4,2678.3,3.73357]
[1727446268799,0.139936,2679.4,2678.2,0.7911]
[1727446269339,4.61389053,2678.3,2677.8,0.7682]
[1727446269602,5.39129053,2679.3,2677.4,0.7682]
[1727446269603,4.61389053,2678.0,2677.4,0.7682]
[1727446269757,4.61389053,2678.3,2677.4,0.7682]
[1727446269954,4.61389053,2678.6,2677.4,0.7682]
[1727446270337,0.46138905,2678.6,2677.4,0.7682]
[1727446270594,4.19469905,2678.6,2677.4,0.7682]
[1727446270832,3.73301,2678.8,2677.6,3.73455]
[1727446271094,3.73274,2679.0,2677.9,3.73421]
[1727446271279,5.40685993,2678.5,2677.7,3.73453]
[1727446271504,5.40685993,2678.5,2677.4,0.7682]
[1727446271658,5.40685993,2678.5,2677.5,3.73482]
[1727446271857,4.11039,2679.1,2677.8,3.73439]
[1727446272059,7.84312,2679.1,2677.8,4.11100188]
[1727446272301,3.73365,2678.4,2677.4,0.7682]
[1727446272538,3.7335,2678.5,2677.4,0.7682]
[1727446272816,5.40685993,2678.1,2677.4,0.7682]
[1727446273350,0.7935,2678.9,2677.4,0.7682]
[1727446273478,0.8124,2679.3,2677.5,1.45344534]
[1727446273678,0.8124,2679.3,2677.9,7.46848]
[1727446273679,3.7326,2679.1,2677.9,7.46848]
[1727446273878,0.8124,2679.3,2678.0,0.96063962]
[1727446274123,0.4684516,2679.2,2678.5,3.73342]
[1727446274422,0.4684516,2679.2,2678.1,0.833]
[1727446274423,0.139936,2679.4,2678.6,4.20407788]
[1727446274591,5.40685993,2679.0,2678.6,0.47085788]
[1727446274795,0.54068599,2678.9,2678.3,0.47085788]
[1727446275109,0.54068599,2678.9,2678.1,0.833]
[1727446275273,5.40685993,2679.0,2678.2,3.73383]
[1727446275479,0.139936,2679.4,2678.2,3.73383]
[1727446275682,0.139936,2679.4,2678.3,3.73368]
[1727446275880,0.139936,2679.4,2678.2,3.73383]
[1727446276109,0.139936,2679.4,2678.6,3.73316]
[1727446276288,0.139936,2679.4,2678.7,3.73313]
[1727446276629,0.139936,2679.4,2678.6,0.373316]
[1727446276630,0.139936,2679.4,2678.6,3.73315]
[1727446277103,0.139936,2679.4,2678.2,0.47085788]
[1727446277294,0.139936,2679.4,2678.5,3.73341]
[1727446277626,0.139936,2679.4,2678.3,3.73367]
[1727446277627,0.139936,2679.4,2678.4,3.73354]
[1727446277778,0.3872106,2679.3,2678.5,3.7334]
[1727446277987,5.54679593,2679.4,2678.3,3.73368]
[1727446278289,5.54679593,2679.4,2678.6,3.73325]
[1727446278290,0.92788659,2679.3,2678.6,3.73325]
[1727446278477,9.27898593,2679.4,2678.3,4.24862499]
[1727446278682,5.54679593,2679.4,2678.3,0.51496499]
[1727446279034,0.92789859,2679.3,2678.7,3.73303]
[1727446279180,5.54679593,2679.4,2678.8,3.73301]
[1727446279377,5.54679593,2679.4,2678.7,3.73312]
[1727446279643,6.10147552,2679.4,2678.7,3.73312]
[1727446279785,0.139936,2679.4,2678.9,3.73281]
[1727446280086,5.40685993,2679.2,2678.5,3.73339]
[1727446280324,0.54068599,2679.1,2678.4,0.8092]
[1727446280500,0.54068599,2679.1,2678.6,3.73327]
[1727446280729,0.54068599,2679.1,2678.4,4.54276]
[1727446281003,0.54068599,2679.1,2678.5,3.73342]
[1727446281201,0.59475459,2679.0,2678.6,3.73329]
[1727446281437,0.139936,2679.4,2678.4,0.8092]
[1727446281651,0.139936,2679.4,2679.3,3.73231]
[1727446281927,0.139936,2679.4,2679.3,4.559358]
[1727446282917,0.7825,2681.2,2680.6,3.73041]
[1727446283205,0.7825,2681.2,2679.4,4.49752]
[1727446283206,0.7825,2681.2,2680.1,0.7654]
[1727446283511,3.7299,2681.1,2680.2,3.73102]
[1727446283744,0.45124,2681.0,2680.1,0.7654]
[1727446283921,3.73031,2680.8,2679.8,4.51478]
[1727446284121,3.7309,2680.4,2679.6,3.73189]
[1727446284335,3.73115,2680.2,2679.4,4.53348]
[1727446284546,0.37309,2680.3,2679.4,0.8014]
[1727446284720,4.49848,2680.4,2679.5,3.73197]
[1727446285021,3.73149,2679.9,2678.9,4.51992]
[1727446285242,3.73185,2679.7,2678.9,4.5199]
[1727446285555,3.73131,2680.1,2678.9,4.51994]
[1727446285751,0.7676,2680.4,2679.2,3.73234]
[1727446285908,0.7676,2680.4,2679.2,3.73233]
[1727446286115,3.73169,2679.8,2679.1,3.73256]
[1727446286419,0.7875,2679.6,2678.5,1.31386499]
[1727446286622,0.7875,2679.6,2677.7,3.73443]
[1727446286623,3.7327,2679.1,2678.1,0.7989]
[1727446286835,3.73274,2679.0,2678.3,0.51496499]
[1727446287022,3.73253,2679.2,2678.3,4.24857499]
[1727446287217,3.73273,2679.0,2678.1,4.53284]
[1727446287427,3.73355,2678.5,2678.0,0.51496499]
[1727446287659,4.52105,2678.5,2678.0,0.51496499]
[1727446287843,1.77931741,2678.5,2677.8,3.73437]
[1727446288042,4.52096,2678.5,2677.7,0.51496499]
[1727446288229,0.7875,2678.5,2677.7,0.51496499]
[1727446288430,0.7875,2678.5,2678.0,3.73412]
[1727446288750,0.7875,2678.9,2678.2,3.73372]
[1727446288917,4.52043,2678.9,2678.0,0.38087891]
[1727446289114,3.73325,2678.7,2677.6,4.53353]
[1727446289341,0.7713,2678.4,2677.4,4.11024]
[1727446289564,5.3971241,2678.3,2677.4,0.3753]
[1727446289781,0.61684241,2678.2,2676.9,0.7862]
[1727446290067,0.7713,2678.4,2676.9,0.7862]
[1727446290068,0.7713,2678.4,2677.5,3.73481]
[1727446290217,0.7713,2678.4,2677.6,3.73466]
[1727446290423,1.52176,2678.4,2677.6,3.73459]
[1727446290624,0.7713,2678.4,2677.9,3.73425]
[1727446290856,3.0,2679.0,2678.0,3.73411]
[1727446291060,1.98497541,2678.9,2678.0,3.73411]
[1727446291351,1.98497541,2678.9,2678.3,3.73361]
[1727446291693,0.8157,2679.6,2679.2,3.73242]
[1727446291861,0.8157,2679.6,2679.0,3.73263]
[1727446292363,0.8157,2679.6,2678.8,3.73294]
[1727446292564,0.8157,2679.6,2678.9,3.73276]
[1727446293394,0.8157,2679.6,2679.0,3.73272]
[1727446293687,0.8157,2679.6,2678.8,3.73295]
[1727446294158,0.8157,2679.6,2678.9,3.73286]
[1727446294365,0.8157,2679.6,2678.8,3.73295]
[1727446295364,4.54762,2679.6,2678.7,3.73315]
[1727446295563,4.54762,2679.6,2678.8,3.73299]
[1727446295564,0.454762,2679.5,2678.8,3.73299]
[1727446295764,0.8157,2679.6,2678.9,3.73274]
[1727446295979,0.8157,2679.6,2678.7,3.73313]
[1727446296281,5.3971241,2679.1,2677.9,0.8256]
[1727446296486,5.3971241,2679.1,2678.4,3.73351]
[1727446296665,3.73301,2678.8,2678.0,3.73403]
[1727446296867,4.51668,2678.9,2678.1,3.73396]
[1727446297095,4.51668,2678.9,2678.0,3.73403]
[1727446297096,8.24966,2678.9,2678.0,3.73403]
[1727446297255,0.80563924,2678.8,2678.0,3.73403]
[1727446297450,9.94381022,2678.8,2678.0,3.73403]
[1727446297693,6.21078022,2678.8,2678.0,3.73401]
[1727446297913,1.07274602,2678.7,2677.8,3.73434]
[1727446298191,5.40514098,2678.4,2677.1,0.7521]
[1727446298496,4.2742341,2678.3,2677.6,3.73456]
[1727446298999,4.52183,2678.2,2677.5,3.73479]
[1727446299353,0.7879,2678.2,2677.3,3.73509]
[1727446299554,4.52176,2678.2,2677.5,3.73474]
[1727446299784,3.73427,2677.9,2677.3,3.73506]
[1727446299985,3.73427,2677.9,2677.1,3.73527]
[1727446300186,9.13991098,2677.6,2677.0,3.73549]
[1727446300350,0.9139911,2677.5,2676.6,3.73603]
[1727446300552,0.9139911,2677.5,2676.7,3.73587]
[1727446300553,3.73497,2677.4,2676.7,3.73587]
[1727446300753,5.40514098,2677.0,2676.8,3.73579]
[1727446300954,5.40514098,2677.0,2676.5,3.73613]
[1727446301394,5.40514098,2677.0,2676.5,3.73621]
[1727446301557,5.40514098,2677.0,2675.8,3.73716]
[1727446301558,0.7688,2676.9,2676.8,3.7358]
[1727446301759,0.7688,2676.9,2676.7,3.73593]
[1727446302064,0.7688,2676.9,2675.7,0.7556]
[1727446302065,0.7688,2676.9,2676.4,3.73634]
[1727446302272,0.7688,2676.9,2676.5,3.73619]
[1727446302471,0.7688,2676.9,2676.6,3.73608]
[1727446302880,3.73405,2678.1,2676.6,3.73608]
[1727446302881,0.7577,2677.3,2676.6,0.373608]
[1727446303110,0.7577,2677.3,2677.0,3.73543]
[1727446303631,0.7577,2677.3,2677.2,3.73524]
[1727446303786,0.7586,2677.9,2677.2,3.73524]
[1727446304135,5.97668,2679.8,2676.9,1.26251165]
[1727446304136,0.7586,2678.4,2676.9,1.26251165]
[1727446304423,0.7586,2678.4,2678.3,3.73371]
[1727446304632,0.7586,2678.4,2678.3,0.57758672]
[1727446305125,0.7586,2678.4,2677.7,3.73451]
[1727446305126,0.7586,2678.4,2678.0,3.73409]
[1727446305282,0.7586,2678.4,2678.1,3.73391]
[1727446305484,0.7586,2678.4,2678.2,3.73374]
[1727446305916,0.7586,2678.4,2678.1,3.73391]
[1727446306119,0.7586,2678.4,2678.3,3.73371]
[1727446306893,0.7586,2678.4,2678.2,3.73375]
[1727446307087,0.7586,2678.4,2678.2,7.46752]
[1727446307395,0.7586,2678.4,2678.2,3.73375]
[1727446307797,0.7586,2678.4,2678.1,3.73395]
[1727446308024,0.7586,2678.4,2677.8,3.73434]
[1727446308401,0.449212,2678.3,2677.7,3.73445]
[1727446308732,0.449212,2678.3,2677.1,0.90845742]
[1727446308936,3.73378,2678.3,2677.4,3.73487]
[1727446309091,3.73411,2678.1,2677.5,3.73472]
[1727446309427,3.73414,2678.0,2677.4,3.73487]
[1727446309629,0.7666,2677.9,2677.4,3.73487]
[1727446309788,0.7666,2677.9,2677.1,0.73093542]
[1727446309789,4.50097,2677.9,2677.1,0.3753]
[1727446309984,3.73442,2677.8,2677.2,3.73512]
[1727446310190,0.8171,2677.5,2676.8,3.73568]
[1727446310497,4.55195,2677.5,2676.9,3.73557]
[1727446310705,3.73501,2677.4,2676.2,3.73659]
[1727446310899,4.54919,2677.2,2676.5,3.7361]
[1727446311218,0.9954331,2677.1,2676.5,3.7361]
[1727446311413,4.7308631,2677.1,2676.5,3.7361]
[1727446311734,5.40514098,2676.9,2676.3,3.73646]
[1727446312042,0.8326,2676.8,2676.5,3.7361]
[1727446312213,0.8326,2676.8,2676.7,3.73594]
[1727446312736,3.7346,2677.7,2677.1,3.73533]
[1727446312737,0.7859,2677.5,2677.1,3.73533]
[1727446312945,0.7859,2677.5,2676.8,3.73574]
[1727446313101,0.7859,2677.5,2676.6,3.73608]
[1727446313102,0.7859,2677.5,2677.0,3.73546]
[1727446313301,0.7859,2677.5,2677.1,3.73538]
[1727446313648,0.7859,2677.5,2677.4,3.73496]
[1727446314158,0.8238,2678.3,2677.9,7.46831]
[1727446314314,0.8238,2678.3,2677.9,3.73414]
[1727446314511,0.8238,2678.3,2677.7,3.73447]
[1727446314512,0.6228941,2678.2,2677.7,3.73447]
[1727446314735,0.6228941,2678.2,2677.1,3.73536]
[1727446315047,0.8238,2678.3,2678.0,3.73406]
[1727446315252,0.8238,2678.3,2677.9,3.73426]
[1727446315619,0.8238,2678.3,2677.0,0.7723]
[1727446315620,0.8238,2678.3,2678.0,3.73405]
[1727446316342,1.4466941,2678.3,2678.1,7.46789]
[1727446316542,0.8238,2678.3,2678.2,3.73385]
[1727446318042,0.8238,2678.3,2677.2,3.73517]
[1727446318043,0.8238,2678.3,2678.0,3.73404]
[1727446318452,0.8238,2678.3,2678.2,3.73385]
[1727446318814,0.7621,2678.7,2678.4,3.73344]
[1727446319055,0.7621,2678.7,2678.2,3.73376]
[1727446319222,0.7621,2678.7,2678.3,3.73367]
[1727446319630,0.7621,2678.7,2678.0,3.73403]
[1727446319821,0.7621,2678.7,2677.3,3.0]
[1727446320014,0.7621,2678.7,2678.6,3.73329]
[1727446321061,0.7922,2679.4,2678.7,3.73308]
[1727446321375,0.7922,2679.4,2679.3,3.73231]
[1727446321652,3.73195,2679.6,2679.0,3.73263]
[1727446321829,3.73195,2679.6,2679.1,3.73252]
[1727446322029,3.73239,2679.3,2678.7,3.73302]
[1727446322346,0.7888,2679.1,2678.3,3.73363]
[1727446322652,0.7888,2679.1,2677.8,0.8318]
[1727446322653,3.7888,2679.1,2678.5,7.46666]
[1727446322861,3.7888,2679.1,2678.6,3.73327]
[1727446323015,3.7888,2679.1,2678.5,3.73331]
[1727446323016,7.52144,2679.1,2678.5,3.73331]
[1727446323224,1.12539,2679.0,2678.5,3.73334]
[1727446323541,1.12539,2679.0,2678.6,3.73327]
[1727446323740,1.12539,2679.0,2678.5,3.73334]
[1727446324347,0.491419,2678.9,2678.5,3.73333]
[1727446324555,0.7888,2679.1,2678.1,7.46782]
[1727446324759,0.7888,2679.1,2678.9,3.73274]
[1727446324914,0.7661,2679.5,2678.8,3.73301]
[1727446325114,3.73217,2679.4,2678.9,3.73286]
[1727446325313,3.73217,2679.4,2678.7,3.73314]
[1727446325314,0.449827,2679.3,2678.7,3.73314]
[1727446325553,0.449827,2679.3,2678.9,3.73276]
[1727446325755,0.7661,2679.5,2679.3,3.73222]
[1727446326056,5.41014098,2680.9,2678.5,3.73339]
[1727446326057,0.7541,2679.9,2679.4,3.73217]
[1727446326252,0.7541,2679.9,2678.8,0.7826]
[1727446326253,9.13681098,2679.8,2679.2,3.73232]
[1727446326418,0.9890911,2679.7,2679.4,3.73208]
[1727446326612,5.40514098,2679.8,2679.2,7.46471]
[1727446326916,9.13678098,2679.8,2679.3,3.73231]
[1727446327329,5.40514098,2679.8,2679.4,3.73217]
[1727446327535,7.16657308,2679.8,2679.4,3.73217]
[1727446327824,7.16657308,2679.8,2679.4,3.73215]
[1727446328152,1.7614321,2679.8,2679.4,3.73209]
[1727446328349,4.48558,2679.9,2679.4,3.73216]
[1727446328649,3.73171,2679.8,2679.3,3.73222]
[1727446328855,9.13680098,2679.8,2679.1,3.73249]
[1727446329047,0.448581,2679.7,2679.3,3.73231]
[1727446329355,0.448581,2679.7,2678.3,0.8]
[1727446329660,0.448581,2679.7,2678.5,3.73335]
[1727446329661,3.73248,2679.2,2678.5,3.73335]
[1727446329843,0.7849,2679.3,2678.3,3.73363]
[1727446330050,0.779,2678.5,2678.3,3.73369]
[1727446330356,0.779,2678.5,2677.9,3.73425]
[1727446330560,0.779,2678.5,2677.7,3.73448]
[1727446330561,4.3520741,2678.4,2677.7,3.73448]
[1727446330850,3.7338,2678.3,2677.6,3.73458]
[1727446331163,0.88647541,2678.3,2677.8,3.7343]
[1727446331452,5.40514098,2678.4,2678.0,3.73412]
[1727446331614,0.779,2678.5,2678.0,3.73412]
[1727446331811,0.779,2678.5,2678.2,3.73384]
[1727446332055,0.779,2678.5,2678.0,3.73401]
[1727446332252,4.51252,2678.5,2677.9,3.7342]
[1727446332454,0.7631,2677.9,2677.6,3.73458]
[1727446332655,0.7631,2677.9,2677.7,3.73452]
[1727446332855,0.7631,2678.3,2677.7,3.73452]
[1727446333085,1.2366072,2678.3,2677.9,3.73416]
[1727446333425,1.2366072,2678.3,2677.7,3.73445]
[1727446333653,0.7631,2678.3,2678.2,3.73385]
[1727446333866,3.73229,2679.4,2677.3,3.73504]
[1727446333867,0.8271,2678.7,2678.5,3.73342]
[1727446334177,9.13768098,2679.2,2678.5,3.73342]
[1727446334178,0.8271,2679.1,2678.7,3.73313]
[1727446334466,0.8271,2679.1,2678.5,3.73342]
[1727446334629,4.55981,2679.1,2678.5,3.73342]
[1727446334831,4.55974,2679.1,2678.5,3.73342]
[1727446335062,0.8271,2679.1,2678.7,3.73313]
[1727446335368,0.8271,2679.1,2678.8,3.73292]
[1727446335669,0.8271,2679.1,2679.0,3.73273]
[1727446336194,0.7556,2679.5,2679.0,3.73273]
[1727446336473,2.0424831,2679.5,2679.1,3.73248]
[1727446336931,0.7556,2679.5,2679.3,3.73229]
[1727446337133,0.7556,2679.5,2679.3,3.73222]
[1727446337353,0.7556,2679.5,2679.1,3.73254]
[1727446337555,0.7556,2679.5,2678.4,0.7542]
[1727446337873,0.7556,2679.5,2679.3,3.73218]
[1727446338391,0.7556,2679.5,2679.2,3.73235]
[1727446338967,4.48766,2679.5,2678.9,3.73282]
[1727446339233,4.48766,2679.5,2678.9,3.73277]
[1727446339234,0.7556,2679.5,2678.9,3.73277]
[1727446339428,0.7556,2679.5,2679.1,3.73256]
[1727446339631,3.73239,2679.3,2678.7,3.73306]
[1727446339932,0.7556,2679.5,2678.8,3.73296]
[1727446340132,0.7556,2679.5,2679.2,3.73236]
[1727446340369,0.7556,2679.5,2679.3,3.73223]
[1727446340616,0.7556,2679.5,2679.2,3.73236]
[1727446341601,0.7556,2679.5,2679.2,7.46472]
[1727446341757,0.7556,2679.5,2679.2,3.73236]
[1727446342220,5.09299,2679.9,2679.2,3.73236]
[1727446342395,4.2818,2679.7,2679.0,3.73262]
[1727446342704,0.8115,2679.6,2679.0,3.73262]
[1727446342900,4.54343,2679.6,2679.0,3.73262]
[1727446343114,0.882523,2679.5,2679.0,3.73262]
[1727446343266,4.614583,2679.5,2678.8,3.73294]
[1727446343611,4.614583,2679.5,2678.9,3.73283]
[1727446343959,0.882523,2679.5,2679.1,3.73256]
[1727446344205,0.8115,2679.6,2679.5,3.73203]
[1727446344760,3.992,2680.0,2679.5,3.73203]
[1727446344761,3.992,2680.0,2679.9,3.73148]
[1727446346499,3.992,2680.0,2679.8,3.73161]
[1727446347408,3.992,2680.0,2679.8,3.73154]
[1727446347615,3.992,2680.0,2679.6,3.73181]
[1727446347909,0.8175,2679.9,2679.3,3.73226]
[1727446348115,3.73163,2679.8,2679.3,3.7323]
[1727446348266,3.73163,2679.8,2679.1,3.73253]
[1727446348468,5.40514098,2679.8,2679.1,3.73258]
[1727446348668,5.03005,2679.9,2678.2,0.40464885]
[1727446348669,0.7867,2679.4,2678.2,0.40464885]
[1727446348902,0.7867,2679.4,2676.5,35.0]
[1727446348903,0.7867,2678.7,2678.3,3.73366]
[1727446349068,3.73262,2679.1,2678.3,3.73366]
[1727446349069,0.7867,2679.1,2678.3,3.73366]
[1727446349280,0.8293,2679.5,2678.4,0.07467095]
[1727446349505,4.56134,2679.5,2678.5,3.73343]
[1727446349718,0.8293,2679.5,2678.6,3.73328]
[1727446350004,3.7322,2679.4,2678.6,3.73328]
[1727446350210,0.8293,2679.5,2678.6,3.73328]
[1727446350384,3.73218,2679.4,2678.5,3.73342]
[1727446350567,0.8293,2679.5,2678.7,3.73302]
[1727446350772,0.8293,2679.5,2678.6,3.73327]
[1727446351002,0.45612,2679.4,2678.6,3.73327]
[1727446351176,0.45612,2679.4,2678.7,0.07465295]
[1727446351512,0.8293,2679.5,2678.8,3.73295]
[1727446351875,0.8293,2679.5,2678.9,3.73282]
[1727446352712,0.8293,2679.5,2678.9,3.73275]
[1727446352920,0.8293,2679.5,2679.0,3.73273]
[1727446353066,0.8293,2679.5,2678.8,3.73295]
[1727446353265,1.285419,2679.5,2678.8,3.73295]
[1727446353815,0.8293,2679.5,2678.6,3.73328]
[1727446353974,0.8293,2679.5,2678.4,3.7335]
[1727446354175,3.73232,2679.3,2678.4,3.7335]
[1727446354412,3.73284,2679.0,2678.1,3.73395]
[1727446355113,4.51084,2679.1,2678.1,3.73395]
[1727446355416,0.7782,2679.1,2678.4,3.73354]
[1727446355595,0.7782,2679.1,2678.1,3.73386]
[1727446355800,0.7782,2679.1,2678.2,0.373386]
[1727446355985,0.7963,2679.6,2679.1,3.73259]
[1727446356511,0.7963,2679.6,2679.1,7.46507]
[1727446356716,0.7963,2679.6,2679.1,3.73248]
[1727446357102,5.2104,2680.0,2679.1,0.373248]
[1727446357411,4.8112,2680.0,2679.4,3.73216]
[1727446357624,4.8112,2680.0,2679.2,3.73233]
[1727446357973,4.8112,2680.0,2679.3,3.73222]
[1727446358211,3.73163,2679.8,2679.1,3.73259]
[1727446358383,0.8174,2679.5,2678.8,3.73295]
[1727446358583,3.73225,2679.4,2678.6,3.7332]
[1727446358785,3.992,2680.0,2678.7,5.40514098]
[1727446359001,3.992,2680.0,2679.4,0.7879]
[1727446359214,3.992,2680.0,2679.5,1.54886408]
[1727446359452,3.992,2680.0,2679.4,4.51996]
[1727446359593,3.992,2680.0,2678.6,3.73317]
[1727446359594,18.88,2678.9,2678.6,3.73317]
[1727446359800,18.88,2678.9,2678.2,0.7935]
[1727446359994,4.8145,2680.0,2679.3,3.73226]
[1727446360254,4.8145,2680.0,2679.4,3.73216]
[1727446360398,4.8145,2680.0,2679.1,3.73259]
[1727446360599,4.8145,2680.0,2679.4,3.73217]
[1727446360819,4.8145,2680.0,2678.8,0.7935]
[1727446361046,4.8145,2680.0,2679.2,3.73231]
[1727446361203,4.8145,2680.0,2678.9,3.0]
[1727446361734,4.8145,2680.0,2679.2,3.73234]
[1727446362094,4.8145,2680.0,2679.0,3.73263]
[1727446362295,8.54588,2680.0,2678.8,4.52645]
[1727446362500,4.8145,2680.0,2679.0,3.73273]
[1727446362810,3.756,2679.9,2678.7,3.73314]
[1727446363010,0.756,2679.5,2678.4,3.73347]
[1727446363226,0.756,2679.5,2678.2,3.73381]
[1727446363540,0.756,2679.2,2678.1,3.73394]
[1727446363741,0.756,2679.2,2678.4,3.73356]
[1727446363895,0.756,2679.2,2677.9,0.7981]
[1727446364097,0.7576,2679.8,2678.9,3.73277]
[1727446364413,4.48928,2679.8,2678.6,4.53667]
[1727446364624,0.7576,2679.8,2678.9,3.73286]
[1727446364936,0.7576,2679.8,2679.0,3.73267]
[1727446365250,0.7576,2679.8,2678.6,0.8035]
[1727446365251,0.7576,2679.8,2678.9,3.73285]
[1727446366000,0.759,2679.6,2678.7,3.73305]
[1727446366198,0.9896031,2679.5,2678.9,3.73284]
[1727446366522,0.9896031,2679.5,2679.0,3.73273]
[1727446366697,0.759,2679.6,2679.0,3.7326]
[1727446366901,0.759,2679.6,2678.9,3.73284]
[1727446367328,0.759,2679.6,2678.8,3.73299]
[1727446367736,0.759,2679.6,2679.0,3.73264]
[1727446368347,0.759,2679.6,2679.2,3.73242]
[1727446369607,0.759,2679.6,2679.0,3.7327]
[1727446369813,0.759,2679.6,2678.9,3.73285]
[1727446370048,0.759,2679.6,2678.8,3.73295]
[1727446370346,0.7864,2679.3,2678.7,3.73307]
[1727446370544,0.7864,2679.3,2679.0,3.73273]
[1727446370845,0.7864,2679.3,2679.1,3.73249]
[1727446371052,0.7864,2679.3,2679.0,3.73261]
[1727446371208,0.7864,2679.3,2679.1,3.73258]
[1727446371406,5.68361211,2679.9,2679.2,3.73245]
[1727446371407,0.8156,2679.8,2679.2,3.73245]